Cogmind - Beta 9.2 @@@ ROGUE MODE // 2019.11.17 @ 00:59:22 Player: Cassie Rose Result: Destroyed by G-34 Mercenary with Small Laser Performance ------------- Evolutions (1) 500 Regions Visited (2) 400 Robots Destroyed (33) 165 Value Destroyed (594) 594 Prototype IDs (3) 60 Alien Tech Used (0) 0 Bonus (0) 0 TOTAL SCORE: 1719 Bonus ------- None Cogmind --------- Core Integrity 0/400 Matter 183/300 Energy 87/100 System Corruption 1% Temperature Cool (6) Movement Flying (40) Location -9/Materials Parts ------- > --- POWER (1) -------- (None) > --- PROPULSION (3) --- VTOL Module > --- UTILITY (3) ------ (None) > --- WEAPON (2) ------- Maul > --- INVENTORY (4) ---- Datajack Datajack Peak State ------------ > --- POWER ------------ Improved Ion Engine > --- PROPULSION ------- Improved Hover Unit Improved Hover Unit VTOL Module > --- UTILITY ---------- Cooling System ECM Suite > --- WEAPON ----------- Light Cannon Datajack > --- INVENTORY -------- Flight Unit Grenade Launcher Datajack Datajack [Rating: 13] Favorites ----------- Power Light Ion Engine Engine Light Ion Engine Propulsion Improved Hover Unit Wheel Compact Wheel Hover Unit Improved Hover Unit Flight Unit VTOL Module Utility Tractor Beam Device Tractor Beam Weapon Light Cannon Energy Gun EM Pulse Gun Ballistic Gun Autogun Ballistic Cannon Light Cannon Launcher Grenade Launcher Impact Weapon Maul Special Melee Weapon Datajack Build | -11 -10 -9 ------- Run | Scr Mat Mat Slots Evolved 2 | . . 2 Power . | . . . Propulsion 1 | . . 1 Utility 1 | . . 1 Weapon . | . . . Parts Attached 41 | 7 17 17 Power 8 | 2 3 3 Engine 8 | 2 3 3 Core . | . . . Reactor . | . . . Propulsion 14 | 2 7 5 Treads . | . . . Leg . | . . . Wheel 2 | 2 . . Hover 5 | . 5 . Flight 7 | . 2 5 Utility 5 | 2 3 . Device 5 | 2 3 . Storage . | . . . Processor . | . . . Hackware . | . . . Protection . | . . . Artifact . | . . . Weapon 14 | 1 4 9 Energy Gun 4 | 1 . 3 Energy Cannon . | . . . Ballistic Gun 1 | . . 1 Ballistic Cannon 3 | . 3 . Launcher 2 | . . 2 Special Weapon . | . . . Impact Weapon 2 | . . 2 Slashing Weapon . | . . . Piercing Weapon . | . . . Special Melee Weapon 2 | . 1 1 Unidentified Prototypes 1 | . . 1 Parts Lost 21 | . 4 17 Power 3 | . . 3 Propulsion 5 | . 1 4 Utility 4 | . 2 2 Weapon 9 | . 1 8 Highest Loss Streak 6 | . 3 6 Average Slot Usage (%) 76 | . 85 51 Engine 12 | . 14 8 Wheel 2 | . 3 . Hover 15 | . 20 . Flight 7 | . 3 18 Device 19 | . 23 6 Energy Gun 4 | . 4 4 Ballistic Cannon 8 | . 9 4 Special Melee Weapon 5 | . 5 4 Naked Turns . | . . . Heaviest Build 14 | 9 14 14 Greatest Support 26 | 26 26 16 Greatest Overweight (x) 3 | . . 3 Average Overweight (x) . | . . . Largest Inventory Capacity 4 | 4 4 4 Average Capacity 4 | 4 4 4 Most Carried 4 | 2 4 4 Average Carried 2 | 1 2 2 Final Capacity 4 | 4 4 4 Final Carried 4 | 2 4 2 Class Distribution -------------------- 100% | Mutant Dominant Class ---------------- Mutant | -10/Materials Mutant | -9/Materials Resources | -11 -10 -9 ----------- Run | Scr Mat Mat Matter Collected 788 | 270 227 291 Remotely 326 | 224 102 . Salvage Created 900 | 238 253 409 Parts 57 | 13 18 26 Haulers Intercepted 3 | . 2 1 Recyclers Shooed 1 | 1 . . Parts Field Recycled . | . . . Retrieved Matter . | . . . Parts Self-Destructed . | . . . Prevented . | . . . Kills | -11 -10 -9 ------- Run | Scr Mat Mat Combat Hostiles Destroyed 19 | . 8 11 Guns 6 | . 3 3 Cannons 6 | . 5 1 AOE 5 | . . 5 Classes Destroyed 9 | 3 4 2 Worker 3 | 2 . 1 Tunneler 4 | 4 . . Hauler 3 | . 2 1 Recycler 2 | 1 . 1 Watcher 2 | . 2 . Swarmer 11 | . 6 5 Grunt 5 | . 2 3 Duelist 1 | . . 1 Sentry 2 | . . 2 Best Kill Streak 5 | 2 3 5 Combat Bots Only 5 | . 3 5 Max Kills in Single Turn 3 | 1 1 3 Gunslinging . | . . . Exploded 3 | . . 3 Melee . | . . . Uniques/NPCs Destroyed . | . . . Combat | -11 -10 -9 -------- Run | Scr Mat Mat Damage Taken 1762 | 31 430 1301 Core 514 | 31 79 404 Absorbed by Shields . | . . . Core Remaining (%) 71 | 87 56 . Volleys Fired 132 | 19 69 44 Largest 2 | 1 1 2 Hottest 90 | 40 40 90 Shots Fired 140 | 19 69 52 Gun 62 | 19 14 29 Cannon 72 | . 55 17 Launcher 6 | . . 6 Special . | . . . Kinetic 85 | . 55 30 Thermal . | . . . Explosive 6 | . . 6 Electromagnetic 49 | 19 14 16 Robot Hit Streak 8 | 7 8 8 Robot Miss Streak 9 | 2 9 4 Penetration Max . | . . . Secondary Targets 1 | . . 1 Max Gunslinging Chain 1 | . . 1 Shots Hit Robots 105 | 15 40 50 Core Hits 41 | 8 13 20 Critical Hits 1 | . . 1 Critical Kills . | . . . Critical Parts Destroyed 1 | . . 1 Melee Attacks 18 | . 4 14 Impact 13 | . . 13 Slashing . | . . . Piercing . | . . . Sneak Attacks 5 | . 2 3 Combat Hostiles . | . . . Follow-up Attacks . | . . . Damage Inflicted 1951 | 241 603 1107 Guns 595 | 214 124 257 Cannons 686 | . 479 207 Explosions 317 | 27 . 290 Melee 353 | . . 353 Ramming . | . . . Kinetic 845 | . 479 366 Thermal 74 | 27 . 47 Explosive 243 | . . 243 Electromagnetic 436 | 214 124 98 Impact 353 | . . 353 Slashing . | . . . Piercing . | . . . Highest Corruption 2 | . 2 1 Average Corruption 1 | . 1 1 Corruption Purged . | . . . Effects 3 | . 3 . Data Loss (minor) 3 | . 3 . Overload Shots . | . . . Overflow Damage 63 | . 21 42 Projectiles 21 | . 21 . Explosions 27 | . . 27 Melee 15 | . . 15 Knockbacks 11 | . 8 3 Impact 2 | . . 2 Kinetic 9 | . 8 1 Secondary . | . . . Self-Inflicted Damage 216 | 31 . 185 Shots 6 | 1 . 5 Rammed . | . . . Targets Rammed . | . . . Kicked . | . . . Crushed . | . . . Highest Temperature 73 | 12 56 73 Average Temperature 23 | 12 26 21 Received Heat Transfer 267 | . 96 171 Siege Activations . | . . . Robots Corrupted . | . . . Combat Hostiles . | . . . Parts Fried 3 | 1 . 2 Impact Corruptions 2 | . . 2 Robots Melted . | . . . Combat Hostiles . | . . . Parts Melted . | . . . Heat Transferred . | . . . Parts Sabotaged . | . . . Parts Stolen . | . . . Parts Stripped . | . . . Power Chain Reactions 2 | 1 . 1 Missiles Intercepted . | . . . Alert | -11 -10 -9 ------- Run | Scr Mat Mat Peak Influence 297 | 35 165 297 Average Influence 59 | 14 49 101 Maximum Alert Level 1 | . . 1 Low Security (%) 98 | 100 100 92 Level 1 1 | . . 7 Level 2 . | . . . Level 3 . | . . . Level 4 . | . . . Level 5 . | . . . High Security . | . . . Max Security . | . . . Squads Dispatched 1 | . . 1 Investigation 1 | . . 1 Extermination . | . . . Reinforcement . | . . . Assault . | . . . Garrison . | . . . Intercept . | . . . Construction Impeded . | . . . Haulers Reinforced . | . . . Stealth | -11 -10 -9 --------- Run | Scr Mat Mat Distress Signals 4 | . . 4 Communications Jammed . | . . . Distress Signals . | . . . Times Spotted 48 | . 25 23 Peak Tracking Total 7 | . 5 7 Tactical Retreats 5 | . 4 1 Traps | -11 -10 -9 ------- Run | Scr Mat Mat Traps Triggered 4 | . 3 1 Indirectly . | . . . Trap Hack Attempts . | . . . Triggered . | . . . Disarmed . | . . . Reprogrammed . | . . . Reused . | . . . Traps Extracted . | . . . Installed . | . . . Triggered . | . . . Machines | -11 -10 -9 ---------- Run | Scr Mat Mat Machines Disabled 7 | . 2 5 Max in Single Turn 2 | . 1 2 Machines Sabotaged . | . . . Garrisons Compromised . | . . . Overloaded Fab Kills . | . . . Fab Network Shutdowns . | . . . Hacking | -11 -10 -9 --------- Run | Scr Mat Mat Machines Accessed 10 | . 8 2 Terminals 10 | . 8 2 Fabricators . | . . . Repair Stations . | . . . Recycling Units . | . . . Scanalyzers . | . . . Garrison Access . | . . . Total Hacks 27 | . 20 7 Successful 16 | . 14 2 Failed 11 | . 6 5 Catastrophic 1 | . . 1 Database Lockouts . | . . . Manual 25 | . 19 6 Terminals 27 | . 20 7 Fabricators . | . . . Repair Stations . | . . . Recycling Units . | . . . Scanalyzers . | . . . Garrison Access . | . . . Terminal Hacks 2 | . 1 1 Prototype ID Bank 1 | . 1 . Alert Level 1 | . . 1 Fabricator Hacks . | . . . Repair Station Hacks . | . . . Recycling Unit Hacks . | . . . Scanalyzer . | . . . Garrison Access Hacks . | . . . Unauthorized Hacks 32 | . 28 4 Terminals 14 | . 13 1 Assimilate 6 | . 6 . Botnet 8 | . 7 1 Fabricators . | . . . Repair Stations . | . . . Recycling Units . | . . . Scanalyzers . | . . . Garrison Access . | . . . Data Cores Recovered . | . . . Used . | . . . Hacking Detections 8 | . 6 2 Full Trace Events 2 | . 1 1 Feedback Events 1 | . . 1 Corruption 1 | . . 1 Feedback Blocked . | . . . Robot Schematics Acquired . | . . . Robots Built . | . . . Matter . | . . . Time . | . . . Total Robot Build Rating . | . . . Part Schematics Acquired . | . . . Parts Built . | . . . Matter . | . . . Time . | . . . Total Part Build Rating . | . . . Parts Repaired . | . . . Time . | . . . Parts Recycled . | . . . Recycled Matter . | . . . Retrieved Matter . | . . . Retrieved Components . | . . . Parts Scanalyzed . | . . . Part Schematics Acquired . | . . . Parts Damaged . | . . . Bothacking | -11 -10 -9 ------------ Run | Scr Mat Mat Used RIF Installer . | . . . Robots Hacked 3 | . 2 1 Non-combat 3 | . 2 1 Combat . | . . . Robot Hacks Applied 3 | . 2 1 parse_system 2 | . 1 1 no_distress 1 | . 1 . Relay Couplers Released . | . . . Robots Rewired . | . . . Allies Hacked . | . . . Hacks Repelled . | . . . Allies | -11 -10 -9 -------- Run | Scr Mat Mat Total Allies . | . . . Largest Group . | . . . Highest-Rated Group . | . . . Highest-Rated Ally . | . . . Total Orders . | . . . Ally Attacks . | . . . Total Damage . | . . . Kills . | . . . Allies Corrupted . | . . . Allies Melted . | . . . Intel | -11 -10 -9 ------- Run | Scr Mat Mat Robot Analysis Total . | . . . Derelict Logs Recovered . | . . . Drone Launches . | . . . Drone Recoveries . | . . . Exploration | -11 -10 -9 ------------- Run | Scr Mat Mat Turns Passed 1585 | 121 1083 381 Spaces Moved 1450 | 41 1128 281 Core 54 | 2 . 52 Treads . | . . . Legs . | . . . Wheels 193 | 39 154 . Hover 784 | . 771 13 Flight 419 | . 203 216 Fastest Speed 34 | 50 37 34 Average Speed 57 | 88 57 55 Slowest Speed 200 | 100 90 200 Overloaded Moves . | . . . Propulsion Burnouts . | . . . Robots Hopped 1 | . . 1 Cave-ins Triggered . | . . . Exploration Rate (%) 45 | 4 99 32 Regions Visited 2 Branch Regions . Pre-discovered Areas . | . . . Known Exits Taken . | . . . Unknown Exits Taken 2 | 1 1 . Scrap Searched . | . . . Spaces Dug . | . . . Terrain Destroyed 23 | . . 23 Melee . | . . . Projectile . | . . . AOE 23 | . . 23 Actions | -11 -10 -9 --------- Run | Scr Mat Mat Total 2026 | 106 1491 429 Wait 333 | 30 245 58 Move 1446 | 40 1127 279 Hop 1 | . . 1 Pick Up 37 | 9 17 11 Fast Attach 9 | . 5 4 Attach 20 | 6 3 11 Detach . | . . . Swap 12 | 1 9 2 Drop 18 | 1 12 5 Fire 132 | 19 69 44 Melee 18 | . 4 14 Ram . | . . . Kick . | . . . Crush . | . . . Escape Stasis . | . . . Rewire . | . . . Trap . | . . . Miscellaneous . | . . . Route ------- -11/Scrapyard -10/Materials (discovered 4 exits: *Mat x3 / [*Min]) -9/Materials (discovered 1 exit: [*Min]) History --------- Turn | Location | Event 13 | -11/Scrapyard | Discovered new exit (range 15) 122 | -11/Scrapyard | Entered Materials 294 | -10/Materials | Discovered new exit (range 5) 307 | -10/Materials | Build established: Mutant 387 | -10/Materials | Discovered new exit (range 10) 525 | -10/Materials | Lost 3 parts (1n1u1w) 650 | -10/Materials | Discovered new exit (range 16) 899 | -10/Materials | Discovered new exit (range 6) 1205 | -10/Materials | Entered another Materials area 1205 | -9/Materials | Evolved 2 slots: Propulsion x1, Utility x1 1349 | -9/Materials | Lost 5 parts (1n2u2w) 1398 | -9/Materials | Discovered new exit (range 13) 1412 | -9/Materials | Core integrity fell below 50% 1448 | -9/Materials | Core integrity fell below 20% 1458 | -9/Materials | Lost 6 parts (2p3n1w) 1586 | -9/Materials | Destroyed by G-34 Mercenary with Small Laser Last Messages --------------- 01559_ G-47 Trooper destroyed. 01559_ Electrolysis Chamber disabled. 01560_ U-05 Engineer lays Concrete. 01562_ L-31 Rogue destroyed. 01562_ G-34 Mercenary destroyed. 01563_ U-05 Engineer lays Concrete. 01563_ K-01 Serf collects debris. 01565_ U-05 Engineer lays Concrete. 01566_ Acquired 42 matter. 01566_ Acquired 30 matter. 01566_ K-01 Serf collects debris. 01567_ Acquired 30 matter. 01567_ U-05 Engineer lays Concrete. 01569_ K-01 Serf collects debris. 01570_ U-05 Engineer builds a Wall. 01581_ U-05 Engineer lays Concrete. 01581_ Grenade Launcher destroyed. 01582_ U-05 Engineer lays Concrete. 01583_ K-01 Serf collects debris. 01583_ U-05 Engineer lays Concrete. Map ----- +----------------------------------------------------+ | ???? #?????????????? | | ?????####+################# ## #?????????????? | | ???????????????????????#" # #?????????????? | | ???????????????????????#"" # #?????????????? | | ???????????????????????#!! # #?????#+??????? | | ???????????????????????#"" < # ##### ??????? | | ???????????????????????#!! # ???????? | | ???????????????????????#"" # ?????????? | | ???????????????????????#" # ???????????? | | ???????????????????????#### ## ##????????????? | | ??????????????????????????# #?????????????? | | ??????????????????????????# #?????????????? | | ??????????????????????????# #?????????????? | | ??????????????????????????# [[=#?????????????? | | ????????????????####??????# [==#?????????????? | | ????????????????# ##### [= #?????????????? | | ????????????????# #?????????????? | | ??????????????? / #?????????????? | | ????????????????# #?????????????? | | ????????????????# ##### #?????????????? | | ????????????????#####?????# #?????????????? | | ??????????????????????????# #?????????????? | | ???????????????????##?????# " +?????????????? | | ???????????????????# ######=! """ #?????????????? | | ???????????????????# # ! """ #?????????????? | | ???????????????????# @ ! #?????????????? | | ???????????????????# = #?????????????? | | ???????????????????# !! g """ +?????????????? | | ???????????????????# !! ! # """ #?????????????? | | ???????????????????# !! # "" #?????????????? | | ???????????????????######## u #?????????????? | | ????????????????????????## [ #?????????????? | | ????????????????????????# = k #?????????????? | | ????????????????????????# " #?????????????? | | ????????????????????????# [ = " #?????????????? | | ????????????????????????# =%!u #?????????????? | | ????????????????????????### #?????????????? | | ?????????????????????????? """ #?????????????? | | ?????????????????????????? """ ???????????? | | ????????????????????????? """ ?????????? | | ????????????????????????? ????????? | | ????????????????????????? ????????? | | ????????????????????????###+######?#### ?????????? | | ??????????????????????????? ????????????????????? | | ??????????????????????????? ????????????????????? | | ??????????????????????????? ????????????????????? | | ??????????????????????????? ????????????????????? | | ??????????????????????????? ????????????????????? | | ??????????????????????????? ?????????????????????? | | ??????????????????????????? ?????????????????????? | +----------------------------------------------------+ Best States ------------- Heat Dissipation 50 Energy Generation 12 Energy Capacity 265 Matter Stores 300 Matter Capacity 300 Sight Range 16 Terrain Scan Range 16 Terrain Scan Density 10 ECM Strength 1 Evasion (%) 63 Item Schematics ----------------- None Robot Schematics ------------------ None Fabricated ------------ Nothing Alien Tech Used ----------------- None Achievements -------------- None Challenges ------------ None Game ------ Seed MetafiberSubatomicStorm Manual? 0 Play Time 00:32:55 Cumulative 17.3 hours Start 2019.11.17 @ 00:26:18 End 2019.11.17 @ 00:59:22 Sessions 1 Manual Loads 0 Difficulty Rogue Special Mode None Game No. 25 Rogue 25 Adventurer 0 Explorer 0 Win Type - Total 0 Types 0/0/0/0/0/0/0 Lore% 18 Gallery% 15 Achievement% 17 Wizard Run 0 Options --------- ASCII 0 Keyboard 0 Movement Mouse Keybinds 0 Fullscreen 1 Font 18/X11 Map View 76x50 Tactical HUD 1 Map Filters NONE Filters LOW_CONTRAST(13,24,33) Steam 1 RUN: 981659ea-eac1-4eed-87f9-ac637a1a5616